[Event "Titled Tuesday Blitz February 28 Late 2023"]
[White "Klenburg, Michael"]
[Black "Milikow, Yoav"]
[WhiteFideId "14102072"]
[BlackFideId "2822237"]
[WhiteElo "2396"]
[BlackElo "2410"]
[Result "0-1"]
[Round "04"]
[TimeControl "180+2"]
[Date "2023.02.28"]
[WhiteClock "0:00:02"]
[BlackClock "0:00:08"]

1. g3 {[%clk 0:02:59]}  e5 {[%clk 0:02:58]} 2. Bg2 {[%clk 0:03:00]}  d5 {[%clk 0:02:57]} 3. d3 {[%clk 0:02:59]}  Nf6 {[%clk 0:02:56]} 4. Nf3 {[%clk 0:03:00]}  Nc6 {[%clk 0:02:54]} 5. O-O {[%clk 0:02:59]}  Be7 {[%clk 0:02:54]} 6. c3 {[%clk 0:03:00]}  a5 {[%clk 0:02:53]} 7. Qc2 {[%clk 0:03:00]}  O-O {[%clk 0:02:53]} 8. Nbd2 {[%clk 0:02:59]}  h6 {[%clk 0:02:46]} 9. b3 {[%clk 0:02:59]}  Be6 {[%clk 0:02:43]} 10. Bb2 {[%clk 0:02:59]}  Re8 {[%clk 0:02:38]} 11. a3 {[%clk 0:02:58]}  Bd6 {[%clk 0:02:30]} 12. e4 {[%clk 0:02:53]}  dxe4 {[%clk 0:02:29]} 13. dxe4 {[%clk 0:02:53]}  Qd7 {[%clk 0:02:23]} 14. b4 {[%clk 0:02:51]}  b5 {[%clk 0:02:14]} 15. Rfe1 {[%clk 0:02:51]}  axb4 {[%clk 0:02:12]} 16. axb4 {[%clk 0:02:46]}  Ne7 {[%clk 0:02:03]} 17. Nb3 {[%clk 0:02:08]}  Ng6 {[%clk 0:01:57]} 18. Rxa8 {[%clk 0:01:55]}  Rxa8 {[%clk 0:01:58]} 19. Rd1 {[%clk 0:01:54]}  Qe8 {[%clk 0:01:45]} 20. Nfd2 {[%clk 0:01:42]}  Nd7 {[%clk 0:01:32]} 21. Nf1 {[%clk 0:01:40]}  Nb6 {[%clk 0:01:31]} 22. Ne3 {[%clk 0:01:39]}  Na4 {[%clk 0:01:29]} 23. Bc1 {[%clk 0:01:38]}  Bf8 {[%clk 0:01:26]} 24. Nd5 {[%clk 0:01:36]}  Qc8 {[%clk 0:01:13]} 25. Be3 {[%clk 0:01:16]}  c6 {[%clk 0:01:08]} 26. Nb6 {[%clk 0:01:11]}  Nxb6 {[%clk 0:01:08]} 27. Bxb6 {[%clk 0:01:11]}  Ra3 {[%clk 0:00:46]} 28. Nc5 {[%clk 0:00:59]}  Bh3 {[%clk 0:00:37]} 29. Qb2 {[%clk 0:00:45]}  Bxg2 {[%clk 0:00:37]} 30. Kxg2 {[%clk 0:00:44]}  Qg4 {[%clk 0:00:25]} 31. Re1 {[%clk 0:00:28]}  Ra8 {[%clk 0:00:17]} 32. Kf1 {[%clk 0:00:20]}  Qf3 {[%clk 0:00:15]} 33. h4 {[%clk 0:00:20]}  Rb8 {[%clk 0:00:12]} 34. Ba7 {[%clk 0:00:18]}  Rd8 {[%clk 0:00:11]} 35. Bb6 {[%clk 0:00:16]}  Rd1 {[%clk 0:00:07]} 36. Rxd1 {[%clk 0:00:15]}  Qxd1+ {[%clk 0:00:08]} 37. Kg2 {[%clk 0:00:15]}  Qg4 {[%clk 0:00:09]} 38. Kf1 {[%clk 0:00:12]}  Bxc5 {[%clk 0:00:09]} 39. Bxc5 {[%clk 0:00:12]}  Qxe4 {[%clk 0:00:09]} 40. Qd2 {[%clk 0:00:12]}  Kh7 {[%clk 0:00:07]} 41. Be3 {[%clk 0:00:11]}  f5 {[%clk 0:00:06]} 42. Bc5 {[%clk 0:00:11]}  f4 {[%clk 0:00:06]} 43. h5 {[%clk 0:00:10]}  Nh8 {[%clk 0:00:05]} 44. gxf4 {[%clk 0:00:09]}  exf4 {[%clk 0:00:06]} 45. Bd4 {[%clk 0:00:09]}  Nf7 {[%clk 0:00:06]} 46. Qa2 {[%clk 0:00:09]}  Ng5 {[%clk 0:00:06]} 47. Qa7 {[%clk 0:00:09]}  Ne6 {[%clk 0:00:05]} 48. Qd7 {[%clk 0:00:09]}  Qh1+ {[%clk 0:00:03]} 49. Ke2 {[%clk 0:00:08]}  Qe4+ {[%clk 0:00:04]} 50. Kf1 {[%clk 0:00:07]}  f3 {[%clk 0:00:04]} 51. Kg1 {[%clk 0:00:07]}  Qg4+ {[%clk 0:00:04]} 52. Kf1 {[%clk 0:00:08]}  Qf5 {[%clk 0:00:04]} 53. Ke1 {[%clk 0:00:06]}  Qe4+ {[%clk 0:00:04]} 54. Kd2 {[%clk 0:00:06]}  Nxd4 {[%clk 0:00:04]} 55. cxd4 {[%clk 0:00:06]}  Qd5 {[%clk 0:00:03]} 56. Qe8 {[%clk 0:00:05]}  Qxd4+ {[%clk 0:00:02]} 57. Kc2 {[%clk 0:00:05]}  Qc4+ {[%clk 0:00:02]} 58. Kd1 {[%clk 0:00:05]}  Qxb4 {[%clk 0:00:03]} 59. Qg6+ {[%clk 0:00:04]}  Kg8 {[%clk 0:00:03]} 60. Qe6+ {[%clk 0:00:04]}  Kf8 {[%clk 0:00:02]} 61. Qc8+ {[%clk 0:00:04]}  Kf7 {[%clk 0:00:02]} 62. Qf5+ {[%clk 0:00:04]}  Ke8 {[%clk 0:00:02]} 63. Qc8+ {[%clk 0:00:04]}  Ke7 {[%clk 0:00:02]} 64. Qc7+ {[%clk 0:00:05]}  Kf6 {[%clk 0:00:02]} 65. Qxc6+ {[%clk 0:00:04]}  Kg5 {[%clk 0:00:01]} 66. Qxf3 {[%clk 0:00:04]}  Qd6+ {[%clk 0:00:01]} 67. Ke1 {[%clk 0:00:03]}  Qf4 {[%clk 0:00:02]} 68. Qd5+ {[%clk 0:00:03]}  Qf5 {[%clk 0:00:02]} 69. Qg2+ {[%clk 0:00:03]}  Kxh5 {[%clk 0:00:03]} 70. Qxg7 {[%clk 0:00:03]}  Qe4+ {[%clk 0:00:03]} 71. Kf1 {[%clk 0:00:03]}  Qb1+ {[%clk 0:00:03]} 72. Kg2 {[%clk 0:00:03]}  Qe4+ {[%clk 0:00:03]} 73. Kf1 {[%clk 0:00:03]}  Qb1+ {[%clk 0:00:04]} 74. Kg2 {[%clk 0:00:03]}  Qg6+ {[%clk 0:00:04]} 75. Qxg6+ {[%clk 0:00:02]}  Kxg6 {[%clk 0:00:05]} 76. Kf3 {[%clk 0:00:03]}  Kf5 {[%clk 0:00:05]} 77. Ke3 {[%clk 0:00:03]}  Kg4 {[%clk 0:00:06]} 78. f4 {[%clk 0:00:02]}  Kf5 {[%clk 0:00:06]} 79. Kf3 {[%clk 0:00:02]}  h5 {[%clk 0:00:06]} 80. Kg3 {[%clk 0:00:03]}  b4 {[%clk 0:00:07]} 81. Kh4 {[%clk 0:00:02]}  b3 {[%clk 0:00:07]} 82. Kxh5 {[%clk 0:00:02]}  b2 {[%clk 0:00:08]} 0-1


[Site "https://www.chess.com"]

[Event "Titled Tuesday Blitz February 28 Late 2023"]
[White "Boyer, Mahel"]
[Black "Jimenez Almeida, Luis David"]
[WhiteFideId "45102422"]
[BlackFideId "22242244"]
[WhiteElo "2434"]
[BlackElo "2245"]
[Result "1-0"]
[Round "04"]
[TimeControl "180+2"]
[Date "2023.02.28"]
[WhiteClock "0:00:45"]
[BlackClock "0:00:21"]

1. g3 {[%clk 0:02:40]}  g6 {[%clk 0:02:58]} 2. Bg2 {[%clk 0:02:41]}  Bg7 {[%clk 0:02:59]} 3. d3 {[%clk 0:02:42]}  d5 {[%clk 0:02:54]} 4. Nf3 {[%clk 0:02:43]}  Nc6 {[%clk 0:02:54]} 5. O-O {[%clk 0:02:44]}  e5 {[%clk 0:02:53]} 6. Nbd2 {[%clk 0:02:44]}  Nf6 {[%clk 0:02:52]} 7. e4 {[%clk 0:02:45]}  O-O {[%clk 0:02:50]} 8. c3 {[%clk 0:02:46]}  Re8 {[%clk 0:02:47]} 9. Re1 {[%clk 0:02:46]}  h6 {[%clk 0:02:44]} 10. h3 {[%clk 0:02:38]}  dxe4 {[%clk 0:02:40]} 11. Nxe4 {[%clk 0:02:36]}  Nxe4 {[%clk 0:02:36]} 12. dxe4 {[%clk 0:02:36]}  Qxd1 {[%clk 0:02:28]} 13. Rxd1 {[%clk 0:02:37]}  Be6 {[%clk 0:02:28]} 14. Be3 {[%clk 0:02:37]}  Rad8 {[%clk 0:02:27]} 15. Nd2 {[%clk 0:02:38]}  Kh7 {[%clk 0:02:17]} 16. Bf1 {[%clk 0:02:38]}  Rd7 {[%clk 0:02:07]} 17. Nb3 {[%clk 0:02:37]}  Rxd1 {[%clk 0:01:34]} 18. Rxd1 {[%clk 0:02:38]}  Bf8 {[%clk 0:01:23]} 19. h4 {[%clk 0:02:22]}  a6 {[%clk 0:01:20]} 20. Be2 {[%clk 0:02:04]}  Rd8 {[%clk 0:01:19]} 21. Rxd8 {[%clk 0:02:02]}  Nxd8 {[%clk 0:01:20]} 22. Kf1 {[%clk 0:01:25]}  Kg7 {[%clk 0:01:19]} 23. Ke1 {[%clk 0:01:24]}  h5 {[%clk 0:01:16]} 24. Kd1 {[%clk 0:01:19]}  f6 {[%clk 0:01:14]} 25. Kc2 {[%clk 0:01:18]}  Kf7 {[%clk 0:01:15]} 26. Nc5 {[%clk 0:01:15]}  Bc8 {[%clk 0:01:13]} 27. Bc4+ {[%clk 0:01:14]}  Ke8 {[%clk 0:01:08]} 28. a4 {[%clk 0:01:09]}  Bxc5 {[%clk 0:01:06]} 29. Bxc5 {[%clk 0:01:09]}  Be6 {[%clk 0:01:06]} 30. Bd3 {[%clk 0:01:09]}  Nf7 {[%clk 0:00:59]} 31. b4 {[%clk 0:01:09]}  Nd6 {[%clk 0:00:57]} 32. b5 {[%clk 0:01:01]}  axb5 {[%clk 0:00:55]} 33. axb5 {[%clk 0:01:02]}  b6 {[%clk 0:00:54]} 34. Bb4 {[%clk 0:01:01]}  Nc4 {[%clk 0:00:50]} 35. Be2 {[%clk 0:00:57]}  Kf7 {[%clk 0:00:47]} 36. f3 {[%clk 0:00:56]}  Nd6 {[%clk 0:00:42]} 37. Bd3 {[%clk 0:00:54]}  Ke7 {[%clk 0:00:39]} 38. c4 {[%clk 0:00:53]}  Kd7 {[%clk 0:00:39]} 39. Kc3 {[%clk 0:00:52]}  Bh3 {[%clk 0:00:33]} 40. c5 {[%clk 0:00:49]}  bxc5 {[%clk 0:00:33]} 41. Bxc5 {[%clk 0:00:50]}  Be6 {[%clk 0:00:29]} 42. Kb4 {[%clk 0:00:49]}  f5 {[%clk 0:00:28]} 43. Be3 {[%clk 0:00:45]}  Nb7 {[%clk 0:00:23]} 44. f4 {[%clk 0:00:43]}  exf4 {[%clk 0:00:22]} 45. Bxf4 {[%clk 0:00:44]}  fxe4 {[%clk 0:00:22]} 46. Bxe4 {[%clk 0:00:45]}  Bf5 {[%clk 0:00:21]} 47. Bxb7 {[%clk 0:00:45]} 1-0


[Site "https://www.chess.com"]

[Event "Titled Tuesday Blitz February 28 Late 2023"]
[White "Tologon tegin, Semetei"]
[Black "Rozman, Levy"]
[WhiteFideId "13800574"]
[BlackFideId "2039877"]
[WhiteElo "2247"]
[BlackElo "2376"]
[Result "0-1"]
[Round "04"]
[TimeControl "180+2"]
[Date "2023.02.28"]
[WhiteClock "0:00:07"]
[BlackClock "0:00:04"]

1. d4 {[%clk 0:03:00]}  d5 {[%clk 0:01:54]} 2. c4 {[%clk 0:03:00]}  e6 {[%clk 0:01:54]} 3. Nc3 {[%clk 0:02:59]}  a6 {[%clk 0:01:55]} 4. cxd5 {[%clk 0:02:57]}  exd5 {[%clk 0:01:55]} 5. Nf3 {[%clk 0:02:57]}  c6 {[%clk 0:01:53]} 6. Bf4 {[%clk 0:02:31]}  Bd6 {[%clk 0:01:50]} 7. Bg3 {[%clk 0:02:31]}  Nf6 {[%clk 0:01:49]} 8. e3 {[%clk 0:02:31]}  Bf5 {[%clk 0:01:47]} 9. Bd3 {[%clk 0:02:07]}  Bxd3 {[%clk 0:01:46]} 10. Qxd3 {[%clk 0:02:08]}  O-O {[%clk 0:01:47]} 11. Ne5 {[%clk 0:02:03]}  Qe7 {[%clk 0:01:43]} 12. f4 {[%clk 0:02:02]}  Ne8 {[%clk 0:01:37]} 13. O-O {[%clk 0:01:56]}  f6 {[%clk 0:01:36]} 14. Nf3 {[%clk 0:01:55]}  Bb4 {[%clk 0:01:29]} 15. Rae1 {[%clk 0:01:39]}  Nd6 {[%clk 0:01:27]} 16. Nd2 {[%clk 0:01:30]}  Bxc3 {[%clk 0:01:10]} 17. bxc3 {[%clk 0:01:29]}  Re8 {[%clk 0:01:07]} 18. c4 {[%clk 0:01:17]}  b5 {[%clk 0:00:47]} 19. cxd5 {[%clk 0:01:13]}  cxd5 {[%clk 0:00:48]} 20. f5 {[%clk 0:01:04]}  Ne4 {[%clk 0:00:43]} 21. Nxe4 {[%clk 0:01:02]}  Qxe4 {[%clk 0:00:43]} 22. Qb3 {[%clk 0:01:01]}  Rd8 {[%clk 0:00:24]} 23. Rf4 {[%clk 0:01:00]}  Qe8 {[%clk 0:00:24]} 24. e4 {[%clk 0:00:58]}  Qf7 {[%clk 0:00:20]} 25. e5 {[%clk 0:00:58]}  Nc6 {[%clk 0:00:21]} 26. Bh4 {[%clk 0:00:46]}  Re8 {[%clk 0:00:12]} 27. e6 {[%clk 0:00:45]}  Qh5 {[%clk 0:00:12]} 28. Qxd5 {[%clk 0:00:43]}  Ne7 {[%clk 0:00:12]} 29. Qe4 {[%clk 0:00:35]}  Rad8 {[%clk 0:00:12]} 30. Bf2 {[%clk 0:00:29]}  Rf8 {[%clk 0:00:06]} 31. g4 {[%clk 0:00:26]}  Qe8 {[%clk 0:00:06]} 32. Rd1 {[%clk 0:00:20]}  Rd5 {[%clk 0:00:06]} 33. Rf3 {[%clk 0:00:20]}  Qc8 {[%clk 0:00:05]} 34. h4 {[%clk 0:00:19]}  Rfd8 {[%clk 0:00:05]} 35. g5 {[%clk 0:00:17]}  Qc6 {[%clk 0:00:05]} 36. gxf6 {[%clk 0:00:16]}  gxf6 {[%clk 0:00:03]} 37. Kh2 {[%clk 0:00:16]}  Kh8 {[%clk 0:00:03]} 38. Rg1 {[%clk 0:00:15]}  Qc7+ {[%clk 0:00:02]} 39. Kh3 {[%clk 0:00:13]}  Qc4 {[%clk 0:00:01]} 40. Qg4 {[%clk 0:00:13]}  Rg8 {[%clk 0:00:01]} 41. Qe4 {[%clk 0:00:11]}  Rxg1 {[%clk 0:00:01]} 42. Bxg1 {[%clk 0:00:12]}  Qc1 {[%clk 0:00:01]} 43. Bh2 {[%clk 0:00:10]}  Qd1 {[%clk 0:00:01]} 44. Qf4 {[%clk 0:00:08]}  Rxd4 {[%clk 0:00:01]} 45. Qb8+ {[%clk 0:00:08]}  Rd8 {[%clk 0:00:02]} 46. Qc7 {[%clk 0:00:07]}  Qxf3+ {[%clk 0:00:02]} 47. Bg3 {[%clk 0:00:06]}  Qf1+ {[%clk 0:00:03]} 48. Kh2 {[%clk 0:00:07]}  Rd2+ {[%clk 0:00:03]} 49. Bf2 {[%clk 0:00:07]}  Qxf2+ {[%clk 0:00:03]} 50. Kh3 {[%clk 0:00:07]}  Qg2# {[%clk 0:00:04]} 0-1


[Site "https://www.chess.com"]

[Event "Titled Tuesday Blitz February 28 Late 2023"]
[White "Pert, Richard G"]
[Black "Yuan, Qingyu"]
[WhiteFideId "404748"]
[BlackFideId "8609772"]
[WhiteElo "2441"]
[BlackElo "2359"]
[Result "0-1"]
[Round "04"]
[TimeControl "180+2"]
[Date "2023.02.28"]
[WhiteClock "0:00:12"]
[BlackClock "0:00:11"]

1. Nf3 {[%clk 0:03:00]}  d5 {[%clk 0:03:00]} 2. d4 {[%clk 0:03:00]}  Nf6 {[%clk 0:03:00]} 3. c4 {[%clk 0:03:00]}  e6 {[%clk 0:03:00]} 4. e3 {[%clk 0:02:58]}  Be7 {[%clk 0:03:00]} 5. b3 {[%clk 0:02:50]}  O-O {[%clk 0:03:00]} 6. Bd3 {[%clk 0:02:50]}  c5 {[%clk 0:02:57]} 7. O-O {[%clk 0:02:50]}  cxd4 {[%clk 0:02:57]} 8. exd4 {[%clk 0:02:50]}  b6 {[%clk 0:02:57]} 9. Nbd2 {[%clk 0:02:43]}  Bb7 {[%clk 0:02:57]} 10. Bb2 {[%clk 0:02:42]}  Nc6 {[%clk 0:02:58]} 11. Re1 {[%clk 0:02:39]}  Rc8 {[%clk 0:02:56]} 12. Rc1 {[%clk 0:02:37]}  Re8 {[%clk 0:02:55]} 13. a3 {[%clk 0:02:33]}  a5 {[%clk 0:02:45]} 14. h3 {[%clk 0:02:22]}  Bf8 {[%clk 0:02:39]} 15. Qe2 {[%clk 0:02:07]}  g6 {[%clk 0:02:38]} 16. Ne5 {[%clk 0:02:03]}  dxc4 {[%clk 0:02:14]} 17. Nxc6 {[%clk 0:01:57]}  cxd3 {[%clk 0:01:41]} 18. Nxd8 {[%clk 0:01:53]}  dxe2 {[%clk 0:01:40]} 19. Nxb7 {[%clk 0:01:51]}  Rxc1 {[%clk 0:01:40]} 20. Bxc1 {[%clk 0:01:36]}  Rb8 {[%clk 0:01:37]} 21. Nxa5 {[%clk 0:01:34]}  bxa5 {[%clk 0:01:38]} 22. Rxe2 {[%clk 0:01:35]}  Rc8 {[%clk 0:01:34]} 23. Re1 {[%clk 0:01:23]}  Nd5 {[%clk 0:01:31]} 24. Kf1 {[%clk 0:01:05]}  Rc2 {[%clk 0:01:18]} 25. Ke2 {[%clk 0:00:57]}  Ra2 {[%clk 0:01:08]} 26. Kd3 {[%clk 0:00:52]}  Nf4+ {[%clk 0:00:59]} 27. Kc3 {[%clk 0:00:52]}  Nxg2 {[%clk 0:00:59]} 28. Rd1 {[%clk 0:00:45]}  Nf4 {[%clk 0:00:56]} 29. Nc4 {[%clk 0:00:42]}  Ne2+ {[%clk 0:00:37]} 30. Kd3 {[%clk 0:00:41]}  Nxc1+ {[%clk 0:00:37]} 31. Rxc1 {[%clk 0:00:41]}  Bxa3 {[%clk 0:00:37]} 32. Nxa3 {[%clk 0:00:38]}  Rxa3 {[%clk 0:00:38]} 33. Rc8+ {[%clk 0:00:34]}  Kg7 {[%clk 0:00:38]} 34. Kc4 {[%clk 0:00:31]}  a4 {[%clk 0:00:30]} 35. b4 {[%clk 0:00:30]}  Rxh3 {[%clk 0:00:25]} 36. b5 {[%clk 0:00:30]}  Rh1 {[%clk 0:00:16]} 37. Ra8 {[%clk 0:00:29]}  Rc1+ {[%clk 0:00:16]} 38. Kb4 {[%clk 0:00:29]}  Rb1+ {[%clk 0:00:16]} 39. Kc5 {[%clk 0:00:29]}  h5 {[%clk 0:00:14]} 40. b6 {[%clk 0:00:29]}  h4 {[%clk 0:00:13]} 41. Rxa4 {[%clk 0:00:26]}  h3 {[%clk 0:00:11]} 42. Ra3 {[%clk 0:00:14]}  h2 {[%clk 0:00:11]} 43. Rh3 {[%clk 0:00:12]}  h1=Q {[%clk 0:00:11]} 0-1


[Site "https://www.chess.com"]

[Event "Titled Tuesday Blitz February 28 Late 2023"]
[White "Bilych, Olexiy"]
[Black "Remolar Gallen, Jose"]
[WhiteFideId "14156504"]
[BlackFideId "2215187"]
[WhiteElo "2320"]
[BlackElo "2223"]
[Result "1-0"]
[Round "04"]
[TimeControl "180+2"]
[Date "2023.02.28"]
[WhiteClock "0:00:12"]
[BlackClock "0:00:01"]

1. d4 {[%clk 0:03:00]}  Nf6 {[%clk 0:02:58]} 2. c4 {[%clk 0:03:01]}  g6 {[%clk 0:02:59]} 3. f3 {[%clk 0:03:00]}  Bg7 {[%clk 0:02:56]} 4. e4 {[%clk 0:03:00]}  d6 {[%clk 0:02:57]} 5. Nc3 {[%clk 0:03:00]}  O-O {[%clk 0:02:57]} 6. Be3 {[%clk 0:02:57]}  c5 {[%clk 0:02:57]} 7. d5 {[%clk 0:02:54]}  e6 {[%clk 0:02:52]} 8. Nge2 {[%clk 0:02:50]}  a6 {[%clk 0:02:44]} 9. a4 {[%clk 0:02:46]}  exd5 {[%clk 0:02:41]} 10. cxd5 {[%clk 0:02:47]}  Nbd7 {[%clk 0:02:38]} 11. Ng3 {[%clk 0:02:45]}  h5 {[%clk 0:02:37]} 12. Be2 {[%clk 0:02:39]}  Qa5 {[%clk 0:02:12]} 13. O-O {[%clk 0:02:37]}  h4 {[%clk 0:02:11]} 14. Nh1 {[%clk 0:02:37]}  h3 {[%clk 0:01:49]} 15. g4 {[%clk 0:02:34]}  Qb4 {[%clk 0:01:46]} 16. Nf2 {[%clk 0:02:16]}  c4 {[%clk 0:01:24]} 17. Qc2 {[%clk 0:02:04]}  Nc5 {[%clk 0:01:19]} 18. a5 {[%clk 0:01:57]}  Nfd7 {[%clk 0:01:03]} 19. Na4 {[%clk 0:01:07]}  b5 {[%clk 0:00:23]} 20. axb6 {[%clk 0:01:00]}  Nxb6 {[%clk 0:00:18]} 21. Nxb6 {[%clk 0:00:50]}  Qxb6 {[%clk 0:00:18]} 22. Qxc4 {[%clk 0:00:45]}  a5 {[%clk 0:00:10]} 23. b4 {[%clk 0:00:45]}  Ba6 {[%clk 0:00:08]} 24. b5 {[%clk 0:00:36]}  Bb7 {[%clk 0:00:03]} 25. Rac1 {[%clk 0:00:37]}  Rfc8 {[%clk 0:00:03]} 26. Nd3 {[%clk 0:00:30]}  a4 {[%clk 0:00:03]} 27. e5 {[%clk 0:00:23]}  a3 {[%clk 0:00:01]} 28. exd6 {[%clk 0:00:22]}  a2 {[%clk 0:00:01]} 29. Bxc5 {[%clk 0:00:20]}  Qa5 {[%clk 0:00:01]} 30. d7 {[%clk 0:00:16]}  Rd8 {[%clk 0:00:01]} 31. Bd4 {[%clk 0:00:13]}  Bf8 {[%clk 0:00:01]} 32. Ra1 {[%clk 0:00:13]}  Rxd7 {[%clk 0:00:01]} 33. Nc5 {[%clk 0:00:12]}  Bxd5 {[%clk 0:00:01]} 34. Qc3 {[%clk 0:00:12]} 1-0


[Site "https://www.chess.com"]

[Event "Titled Tuesday Blitz February 28 Late 2023"]
[White "Nasuta, Grzegorz"]
[Black "Taboas Rodriguez, Daniel"]
[WhiteFideId "1141686"]
[BlackFideId "2208466"]
[WhiteElo "2449"]
[BlackElo "2365"]
[Result "1-0"]
[Round "04"]
[TimeControl "180+2"]
[Date "2023.02.28"]
[WhiteClock "0:01:56"]
[BlackClock "0:00:46"]

1. e4 {[%clk 0:02:53]}  e5 {[%clk 0:02:59]} 2. Nf3 {[%clk 0:02:52]}  Nc6 {[%clk 0:02:59]} 3. Bc4 {[%clk 0:02:51]}  Nf6 {[%clk 0:02:59]} 4. d3 {[%clk 0:02:51]}  Bc5 {[%clk 0:02:59]} 5. O-O {[%clk 0:02:51]}  d6 {[%clk 0:02:59]} 6. c3 {[%clk 0:02:51]}  a6 {[%clk 0:02:58]} 7. Bb3 {[%clk 0:02:50]}  Ba7 {[%clk 0:02:57]} 8. Re1 {[%clk 0:02:50]}  Be6 {[%clk 0:02:51]} 9. Nbd2 {[%clk 0:02:47]}  O-O {[%clk 0:02:49]} 10. h3 {[%clk 0:02:47]}  Ne7 {[%clk 0:02:47]} 11. Bc2 {[%clk 0:02:45]}  Ng6 {[%clk 0:02:43]} 12. d4 {[%clk 0:02:45]}  c6 {[%clk 0:02:36]} 13. Nf1 {[%clk 0:02:45]}  Re8 {[%clk 0:02:29]} 14. Ng3 {[%clk 0:02:45]}  Qd7 {[%clk 0:02:16]} 15. Bg5 {[%clk 0:02:44]}  Qd8 {[%clk 0:02:06]} 16. Nh5 {[%clk 0:02:42]}  Kh8 {[%clk 0:01:44]} 17. dxe5 {[%clk 0:02:36]}  Nxe5 {[%clk 0:01:20]} 18. Nxe5 {[%clk 0:02:36]}  dxe5 {[%clk 0:01:21]} 19. Nxf6 {[%clk 0:02:16]}  Qxd1 {[%clk 0:01:15]} 20. Raxd1 {[%clk 0:02:10]}  gxf6 {[%clk 0:01:15]} 21. Bxf6+ {[%clk 0:02:11]}  Kg8 {[%clk 0:01:16]} 22. Bxe5 {[%clk 0:02:11]}  Bxa2 {[%clk 0:01:16]} 23. Bf6 {[%clk 0:02:04]}  Be6 {[%clk 0:01:10]} 24. Rd3 {[%clk 0:01:59]}  Bb8 {[%clk 0:01:00]} 25. e5 {[%clk 0:01:58]}  Kf8 {[%clk 0:00:54]} 26. Rg3 {[%clk 0:01:56]}  Bc7 {[%clk 0:00:46]} 27. Bxh7 {[%clk 0:01:56]} 1-0


[Site "https://www.chess.com"]

[Event "Titled Tuesday Blitz February 28 Late 2023"]
[White "Sztokbant, Bernardo Vainzoff"]
[Black "Oro, Faustino"]
[WhiteFideId "2115956"]
[BlackFideId "20000197"]
[WhiteElo "2222"]
[BlackElo "1984"]
[Result "1-0"]
[Round "04"]
[TimeControl "180+2"]
[Date "2023.02.28"]
[WhiteClock "0:00:45"]
[BlackClock "0:00:04"]

1. e4 {[%clk 0:03:00]}  e5 {[%clk 0:02:57]} 2. Nf3 {[%clk 0:03:00]}  Nc6 {[%clk 0:02:57]} 3. Bb5 {[%clk 0:03:00]}  Nf6 {[%clk 0:02:56]} 4. O-O {[%clk 0:03:00]}  Nxe4 {[%clk 0:02:53]} 5. d4 {[%clk 0:03:00]}  Nd6 {[%clk 0:02:51]} 6. Bxc6 {[%clk 0:03:01]}  dxc6 {[%clk 0:02:52]} 7. dxe5 {[%clk 0:03:02]}  Nf5 {[%clk 0:02:52]} 8. Qxd8+ {[%clk 0:03:02]}  Kxd8 {[%clk 0:02:53]} 9. Nc3 {[%clk 0:03:03]}  Be7 {[%clk 0:02:40]} 10. h3 {[%clk 0:03:04]}  Be6 {[%clk 0:02:39]} 11. b3 {[%clk 0:03:03]}  Kc8 {[%clk 0:02:38]} 12. Bb2 {[%clk 0:03:03]}  b6 {[%clk 0:02:37]} 13. Rad1 {[%clk 0:03:03]}  Kb7 {[%clk 0:02:35]} 14. Ne2 {[%clk 0:03:03]}  Rhd8 {[%clk 0:02:26]} 15. Nf4 {[%clk 0:03:03]}  Bd5 {[%clk 0:02:14]} 16. Nxd5 {[%clk 0:02:57]}  cxd5 {[%clk 0:02:11]} 17. Rfe1 {[%clk 0:02:57]}  c5 {[%clk 0:01:49]} 18. c3 {[%clk 0:02:55]}  Kc6 {[%clk 0:01:45]} 19. g4 {[%clk 0:02:55]}  Nh6 {[%clk 0:01:38]} 20. Bc1 {[%clk 0:02:54]}  Ng8 {[%clk 0:01:36]} 21. Kg2 {[%clk 0:02:53]}  Re8 {[%clk 0:01:30]} 22. Nh2 {[%clk 0:02:45]}  Rad8 {[%clk 0:01:29]} 23. f4 {[%clk 0:02:45]}  b5 {[%clk 0:00:53]} 24. Nf3 {[%clk 0:02:44]}  a5 {[%clk 0:00:52]} 25. f5 {[%clk 0:02:33]}  b4 {[%clk 0:00:50]} 26. Bb2 {[%clk 0:02:28]}  bxc3 {[%clk 0:00:42]} 27. Bxc3 {[%clk 0:02:29]}  Kb6 {[%clk 0:00:39]} 28. e6 {[%clk 0:02:20]}  f6 {[%clk 0:00:39]} 29. h4 {[%clk 0:02:08]}  d4 {[%clk 0:00:36]} 30. Bb2 {[%clk 0:02:00]}  Bd6 {[%clk 0:00:36]} 31. Nd2 {[%clk 0:01:59]}  Ne7 {[%clk 0:00:36]} 32. Nc4+ {[%clk 0:02:00]}  Ka6 {[%clk 0:00:32]} 33. Ba3 {[%clk 0:01:58]}  Nd5 {[%clk 0:00:25]} 34. Nxd6 {[%clk 0:01:43]}  Rxd6 {[%clk 0:00:26]} 35. Bxc5 {[%clk 0:01:42]}  Rc6 {[%clk 0:00:26]} 36. Bxd4 {[%clk 0:01:40]}  Rc2+ {[%clk 0:00:26]} 37. Kf3 {[%clk 0:01:40]}  Rxa2 {[%clk 0:00:20]} 38. g5 {[%clk 0:01:33]}  Ra3 {[%clk 0:00:19]} 39. Ke4 {[%clk 0:01:27]}  Rd8 {[%clk 0:00:18]} 40. Bxf6 {[%clk 0:00:54]}  gxf6 {[%clk 0:00:05]} 41. Rxd5 {[%clk 0:00:53]}  Rf8 {[%clk 0:00:03]} 42. e7 {[%clk 0:00:49]}  Re8 {[%clk 0:00:03]} 43. gxf6 {[%clk 0:00:49]}  Rxb3 {[%clk 0:00:04]} 44. Rd8 {[%clk 0:00:45]} 1-0


[Site "https://www.chess.com"]